fUSD/lending_fUSD_20240526
["ID","MTS","AMOUNT","RATE_DAILY","PERIOD"]
[327972830,1716732656972,-500.0,0.00027671,4]
[327972831,1716732656981,-656.51,0.00027671,4]
[327972832,1716732656991,-500.0,0.00027671,4]
[327972833,1716732657001,-1310.5,0.00027671,4]
[327972834,1716732657010,-500.0,0.00027671,4]
[327972835,1716732657020,-552.73,0.00027671,4]
[327972836,1716732657030,-967.98,0.00027671,4]
[327972837,1716732657038,-500.0,0.00027671,4]
[327972838,1716732657048,-500.0,0.00027671,4]
[327972839,1716732657058,-1148.48,0.00027671,4]
[327972840,1716732657067,-795.96,0.00027671,4]
[327972841,1716732657076,-678.18,0.00027671,4]
[327972842,1716732657086,-500.0,0.00027671,4]
[327972843,1716732657095,-576.35,0.00027671,4]
[327972844,1716732657104,-500.0,0.00027671,4]
[327972845,1716732657114,-606.32,0.00027671,4]
[327972846,1716732657124,-585.71,0.00027671,4]
[327972847,1716732657134,-1027.88,0.00027671,4]
[327972848,1716732657145,-2390.71,0.00027671,4]
[327972849,1716732657157,-500.0,0.00027671,4]
[327972850,1716732657166,-720.94,0.00027671,4]
[327972851,1716732657176,-884.01,0.00027671,4]
[327972852,1716732657186,-571.26,0.00027671,4]
[327972853,1716732657197,-1408.04,0.00027671,4]
[327972854,1716732657206,-500.0,0.00027671,4]
[327972855,1716732657215,-500.0,0.00027671,4]
[327972856,1716732657225,-500.0,0.00027671,4]
[327972857,1716732657235,-500.0,0.00027671,4]
[327972858,1716732657245,-1268.26,0.00027671,4]
[327972859,1716732657255,-1085.42,0.00027671,4]
[327972860,1716732657264,-8694.34,0.00027671,4]
[327972861,1716732657275,-500.0,0.00027671,4]
[327972862,1716732657285,-1268.05,0.00027671,4]
[327972863,1716732657295,-1448.06,0.00027671,4]
[327972864,1716732657305,-972.62,0.00027671,4]
[327972865,1716732657314,-500.0,0.00027671,4]
[327972866,1716732657323,-3904.28,0.00027671,4]
[327972867,1716732657332,-453.71275736,0.00027671,4]
[327972868,1716732657341,-573.16,0.00027671,4]
[327972869,1716732657350,-914.87,0.00027671,4]
[327972870,1716732657359,-199.89,0.00027671,4]
[327972871,1716732657370,-1089.59,0.00027671,4]
[327972872,1716732657379,-500.0,0.00027671,4]
[327972873,1716732657388,-500.0,0.00027671,4]
[327972874,1716732657397,-885.34,0.00027671,4]
[327972875,1716732657406,-500.0,0.00027671,4]
[327972876,1716732657416,-591.51,0.00027671,4]
[327972877,1716732657425,-500.0,0.00027671,4]
[327972878,1716732657434,-1079.94,0.00027671,4]
[327972879,1716732657443,-879.76,0.00027671,4]
[327972880,1716732657455,-1841.81,0.00027671,4]
[327972881,1716732657466,-500.0,0.00027671,4]
[327972882,1716732657476,-500.0,0.00027671,4]
[327972883,1716732657485,-1638.97,0.00027671,4]
[327972884,1716732657495,-500.0,0.00027671,4]
[327972885,1716732657504,-625.43,0.00027671,4]
[327972886,1716732657514,-1077.58,0.00027671,4]
[327972887,1716732657524,-500.0,0.00027671,4]
[327972888,1716732657535,-710.46,0.00027671,4]
[327972889,1716732657544,-647.72,0.00027671,4]
[327972890,1716732657554,-568.85,0.00027671,4]
[327972891,1716732657563,-304.59061221,0.00027671,4]
[327972892,1716732657574,-678.18,0.00027671,4]
[327972893,1716732657583,-869.84,0.00027671,4]
[327972894,1716732657592,-500.0,0.00027671,4]
[327972895,1716732657602,-500.0,0.00027671,4]
[327972896,1716732657612,-717.42,0.00027671,4]
[327972897,1716732657622,-576.0,0.00027671,4]
[327972898,1716732657631,-1137.45,0.00027671,4]
[327972899,1716732657641,-500.0,0.00027671,4]
[327972900,1716732657651,-500.0,0.00027671,4]
[327972901,1716732657660,-500.0,0.00027671,4]
[327972902,1716732657669,-500.0,0.00027671,4]
[327972903,1716732657679,-500.0,0.00027671,4]
[327972904,1716732657689,-1101.55,0.00027671,4]
[327972905,1716732657698,-623.77,0.00027671,4]
[327972906,1716732657707,-504.89,0.00027671,4]
[327972907,1716732657717,-570.33,0.00027671,4]
[327972908,1716732657726,-853.64,0.00027671,4]
[327972909,1716732657735,-500.0,0.00027671,4]
[327972910,1716732657744,-1592.22,0.00027671,4]
[327972911,1716732657754,-500.0,0.00027671,4]
[327972912,1716732657763,-1027.97,0.00027671,4]
[327972913,1716732657773,-1044.37,0.00027671,4]
[327972914,1716732657782,-500.0,0.00027671,4]
[327972915,1716732657791,-500.0,0.00027671,4]
[327972916,1716732657801,-1313.69,0.00027671,4]
[327972917,1716732657810,-624.18,0.00027671,4]
[327972918,1716732657820,-500.0,0.00027671,4]
[327972919,1716732657829,-1190.26,0.00027671,4]
[327972920,1716732657839,-4137.91,0.00027671,4]
[327972921,1716732657848,-1036.79,0.00027671,4]
[327972922,1716732657858,-505.94035671,0.00027671,4]
[327972923,1716732657867,-500.0,0.00027671,4]
[327972924,1716732657877,-850.51,0.00027671,4]
[327972925,1716732657887,-500.0,0.00027671,4]
[327972926,1716732657896,-916.61,0.00027671,4]
[327972927,1716732657908,-1474.98,0.00027671,4]
[327972928,1716732657917,-707.12,0.00027671,4]
[327972929,1716732657927,-500.0,0.00027671,4]
[327972930,1716732657937,-500.0,0.00027671,4]
[327972931,1716732657946,-2412.83,0.00027671,4]
[327972932,1716732657955,-500.0,0.00027671,4]
[327972933,1716732657965,-500.0,0.00027671,4]
[327972934,1716732657974,-500.0,0.00027671,4]
[327972935,1716732657983,-687.58,0.00027671,4]
[327972936,1716732657993,-189.66466069,0.00027671,4]
[327972937,1716732658002,-1038.84,0.00027671,4]
[327972938,1716732658012,-500.0,0.00027671,2]
[327972939,1716732658021,-500.0,0.00027671,4]
[327972940,1716732658030,-500.0,0.00027671,4]
[327972941,1716732658041,-654.73,0.00027671,4]
[327972942,1716732658050,-928.91,0.00027671,4]
[327972943,1716732658061,-500.0,0.00027671,4]
[327972944,1716732658073,-592.19,0.00027671,4]
[327972945,1716732658083,-502.52,0.00027671,4]
[327972946,1716732658094,-500.0,0.00027671,4]
[327972947,1716732658103,-500.0,0.00027671,4]
[327972948,1716732658112,-500.0,0.00027671,4]
[327972949,1716732658122,-1244.5,0.00027671,4]
[327972950,1716732658131,-901.87,0.00027671,4]
[327972951,1716732658141,-827.03,0.00027671,4]
[327972952,1716732658151,-586.69,0.00027671,4]
[327972953,1716732658161,-793.2,0.00027671,4]
[327972954,1716732658171,-501.48,0.00027671,4]
[327972955,1716732658181,-709.61,0.00027671,4]
[327972956,1716732658190,-500.0,0.00027671,4]
[327972957,1716732658200,-153.31773316,0.00027683,2]
[327972958,1716732658210,-2717.23,0.00027689,2]
[327972959,1716732658220,-153.93863298,0.00027697,2]
[327972960,1716732658295,-551.197367,0.0002772,2]
[327972961,1716732658307,-183.896949,0.0002772,2]
[327972962,1716732658317,-420.524747,0.0002772,2]
[327972963,1716732658326,-235.507659,0.0002772,2]
[327972964,1716732658336,-186.015969,0.0002772,2]
[327972965,1716732658346,-236.330708,0.0002772,2]
[327972966,1716732658355,-168.886399,0.0002772,2]
[327972967,1716732658365,-160.36674768,0.00027747,2]
[327972968,1716732658375,-1656.39,0.00027752,2]
[327972969,1716732658384,-4113.35559987,0.00027823,2]
[327972970,1716732658394,-151.0,0.00027823,7]
[327972971,1716732658405,-155.0,0.000279,2]
[327972972,1716732658414,-300.0,0.000279,10]
[327972973,1716732658424,-156.12975288,0.00027932,2]
[327972974,1716732658433,-152.35228072,0.00027933,2]
[327972975,1716732658442,-1614.2,0.00027941,2]
[327972976,1716732658452,-151.0,0.00027941,7]
[327972977,1716732658465,-151.0,0.00027941,7]
[327972978,1716732658475,-1000.0,0.00027943,2]
[327972979,1716732658484,-150.0,0.00027944,10]
[327972980,1716732658493,-155.17229403,0.00027944,2]
[327972981,1716732658507,-500.0,0.00027945,4]
[327972982,1716732658517,-500.0,0.00027945,4]
[327972983,1716732658526,-500.0,0.00027945,4]
[327972984,1716732658538,-289.78352066,0.00027945,4]
[327972985,1716732658547,-500.0,0.00027945,4]
[327972986,1716732658556,-500.0,0.00027945,4]
[327972987,1716732658566,-500.0,0.00027945,4]
[327972988,1716732658575,-867.51,0.00027945,4]
[327972989,1716732658585,-500.0,0.00027945,4]
[327972990,1716732658595,-500.0,0.00027945,4]
[327972991,1716732658604,-500.0,0.00027945,4]
[327972992,1716732658613,-500.0,0.00027945,4]
[327972993,1716732658623,-500.0,0.00027945,4]
[327972994,1716732658632,-151.0,0.00027945,7]
[327972995,1716732658642,-151.0,0.00027945,7]
[327972996,1716732658652,-500.0,0.00027945,4]
[327972997,1716732658662,-489.45580108,0.00027945,4]
[327972998,1716732658672,-613.37,0.00027945,4]
[327972999,1716732658683,-500.0,0.00027945,4]
[327973000,1716732658692,-500.0,0.00027945,4]
[327973001,1716732658702,-689.25,0.00027945,4]
[327973002,1716732658713,-912.17,0.00027945,4]
[327973003,1716732658722,-500.0,0.00027945,4]
[327973004,1716732658732,-485.70274983,0.00027945,4]
[327973005,1716732658741,-500.0,0.00027945,4]
[327973006,1716732658750,-500.0,0.00027945,4]
[327973007,1716732658760,-577.1,0.00027945,4]
[327973008,1716732658769,-500.0,0.00027945,4]
[327973009,1716732658778,-500.0,0.00027945,4]
[327973010,1716732658787,-500.0,0.00027945,4]
[327973011,1716732658797,-362.48521209,0.00027945,4]
[327973012,1716732658806,-500.0,0.00027945,4]
[327973013,1716732658815,-3083.08,0.00027945,4]
[327973014,1716732658824,-500.0,0.00027945,4]
[327973015,1716732658833,-500.0,0.00027945,4]
[327973016,1716732658843,-691.79,0.00027945,4]
[327973017,1716732658853,-500.0,0.00027945,4]
[327973018,1716732658863,-500.0,0.00027945,4]
[327973019,1716732658872,-500.0,0.00027945,4]
[327973020,1716732658882,-1003.57,0.00027945,4]
[327973021,1716732658891,-151.0,0.00027945,7]
[327973022,1716732658902,-500.0,0.00027945,4]
[327973023,1716732658911,-702.93,0.00027945,4]
[327973024,1716732658920,-151.0,0.00027945,7]
[327973025,1716732658929,-500.0,0.00027945,4]
[327973026,1716732658939,-500.0,0.00027945,4]
[327973027,1716732658948,-500.0,0.00027945,4]
[327973028,1716732658957,-900.58,0.00027945,4]
[327973029,1716732658967,-500.0,0.00027945,4]
[327973030,1716732658976,-891.34,0.00027945,4]
[327973031,1716732658986,-838.16,0.00027945,2]
[327973032,1716732658995,-500.0,0.00027945,4]
[327973033,1716732659004,-500.0,0.00027945,4]
[327973034,1716732659013,-500.0,0.00027945,2]
[327973035,1716732659022,-615.98,0.00027945,4]
[327973036,1716732659032,-576.75,0.00027945,4]
[327973037,1716732659041,-500.0,0.00027945,4]
[327973038,1716732659051,-767.17,0.00027945,4]
[327973039,1716732659060,-500.0,0.00027945,4]
[327973040,1716732659068,-500.0,0.00027945,4]
[327973041,1716732659078,-500.0,0.00027945,4]
[327973042,1716732659087,-500.0,0.00027945,4]
[327973043,1716732659096,-633.88,0.00027945,4]
[327973044,1716732659105,-500.0,0.00027945,4]
[327973045,1716732659114,-371.02457368,0.00027945,4]
[327973046,1716732659124,-500.0,0.00027945,4]
[327973047,1716732659133,-758.6,0.00027945,4]
[327973048,1716732659143,-1363.1,0.00027945,4]
[327973049,1716732659154,-500.0,0.00027945,4]
[327973050,1716732659164,-500.0,0.00027945,4]
[327973051,1716732659173,-500.0,0.00027945,4]
[327973052,1716732659183,-535.29,0.00027945,4]
[327973053,1716732659192,-500.0,0.00027945,4]
[327973054,1716732659201,-500.0,0.00027945,4]
[327973055,1716732659210,-500.0,0.00027945,4]
[327973056,1716732659220,-500.0,0.00027945,4]
[327973057,1716732659229,-596.76,0.00027945,4]
[327973058,1716732659239,-500.0,0.00027945,4]
[327973059,1716732659247,-500.0,0.00027945,4]
[327973060,1716732659257,-151.0,0.00027945,7]
[327973061,1716732659267,-500.0,0.00027945,4]
[327973062,1716732659276,-500.0,0.00027945,4]
[327973063,1716732659285,-500.0,0.00027945,4]
[327973064,1716732659295,-500.0,0.00027945,4]
[327973065,1716732659304,-500.0,0.00027945,4]
[327973066,1716732659314,-500.0,0.00027945,4]
[327973067,1716732659324,-500.0,0.00027945,4]
[327973068,1716732659333,-500.0,0.00027945,4]
[327973069,1716732659343,-500.0,0.00027945,4]
[327973070,1716732659352,-500.0,0.00027945,4]
[327973071,1716732659362,-638.58,0.00027945,4]
[327973072,1716732659371,-500.0,0.00027945,4]
[327973073,1716732659381,-500.0,0.00027945,4]
[327973074,1716732659390,-500.0,0.00027945,4]
[327973075,1716732659400,-500.0,0.00027945,4]
[327973076,1716732659413,-500.0,0.00027945,4]
[327973077,1716732659422,-500.0,0.00027945,4]
[327973078,1716732659431,-813.06,0.00027945,4]
[327973079,1716732659440,-676.35,0.00027945,4]
[327973080,1716732659449,-1206.79,0.00027945,4]
[327973081,1716732659463,-500.0,0.00027945,4]
[327973082,1716732659472,-500.0,0.00027945,4]
[327973083,1716732659482,-500.0,0.00027945,4]
[327973084,1716732659491,-500.0,0.00027945,4]
[327973085,1716732659502,-500.0,0.00027945,4]
[327973086,1716732659512,-758.9,0.00027945,4]
[327973087,1716732659521,-500.0,0.00027945,4]
[327973088,1716732659531,-500.0,0.00027945,4]
[327973089,1716732659542,-151.0,0.00027945,7]
[327973090,1716732659552,-500.0,0.00027945,4]
[327973091,1716732659561,-500.0,0.00027945,4]
[327973092,1716732659570,-500.0,0.00027945,4]
[327973093,1716732659579,-500.0,0.00027945,4]
[327973094,1716732659589,-500.0,0.00027945,4]
[327973095,1716732659598,-544.35,0.00027945,2]
[327973096,1716732659607,-500.0,0.00027945,4]
[327973097,1716732659617,-500.0,0.00027945,4]
[327973098,1716732659627,-500.0,0.00027945,4]
[327973099,1716732659637,-500.0,0.00027945,4]
[327973100,1716732659647,-500.0,0.00027945,4]
[327973101,1716732659659,-500.0,0.00027945,4]
[327973102,1716732659668,-500.0,0.00027945,4]
[327973103,1716732659677,-500.0,0.00027945,4]
[327973104,1716732659687,-151.0,0.00027945,7]
[327973105,1716732659697,-607.01,0.00027945,4]
[327973106,1716732659706,-500.0,0.00027945,4]
[327973107,1716732659715,-500.0,0.00027945,4]
[327973108,1716732659725,-869.48,0.00027945,4]
[327973109,1716732659734,-500.0,0.00027945,4]
[327973110,1716732659744,-500.0,0.00027945,4]
[327973111,1716732659753,-598.19,0.00027945,4]
[327973112,1716732659763,-500.0,0.00027945,4]
[327973113,1716732659772,-500.0,0.00027945,4]
[327973114,1716732659781,-500.0,0.00027945,4]
[327973115,1716732659791,-500.0,0.00027945,4]
[327973116,1716732659800,-501.39,0.00027945,4]
[327973117,1716732659810,-565.06,0.00027945,4]
[327973118,1716732659819,-500.0,0.00027945,4]
[327973119,1716732659828,-536.08,0.00027945,4]
[327973120,1716732659838,-500.0,0.00027945,4]
[327973121,1716732659847,-500.0,0.00027945,4]
[327973122,1716732659856,-500.0,0.00027945,4]
[327973123,1716732659866,-500.0,0.00027945,4]
[327973124,1716732659875,-500.0,0.00027945,4]
[327973125,1716732659886,-409.3190394,0.00027945,4]
[327973126,1716732659896,-500.0,0.00027945,4]
[327973127,1716732659908,-500.0,0.00027945,4]
[327973128,1716732659917,-500.0,0.00027945,4]
[327973129,1716732659927,-500.0,0.00027945,4]
[327973130,1716732659936,-500.0,0.00027945,4]
[327973131,1716732659946,-500.0,0.00027945,4]
[327973132,1716732659956,-500.0,0.00027945,4]
[327973133,1716732659966,-500.0,0.00027945,4]
[327973134,1716732659975,-500.0,0.00027945,4]
[327973135,1716732659985,-500.0,0.00027945,4]
[327973136,1716732659996,-500.0,0.00027945,4]
[327973137,1716732660006,-500.0,0.00027945,4]
[327973138,1716732660016,-500.0,0.00027945,4]
[327973139,1716732660026,-500.0,0.00027945,4]
[327973140,1716732660036,-500.0,0.00027945,4]
[327973141,1716732660047,-500.0,0.00027945,4]
[327973142,1716732660057,-500.0,0.00027945,4]
[327973143,1716732660067,-500.0,0.00027945,4]
[327973144,1716732660077,-575.01,0.00027945,4]
[327973145,1716732660086,-500.0,0.00027945,4]
[327973146,1716732660096,-500.0,0.00027945,4]
[327973147,1716732660106,-500.0,0.00027945,4]
[327973148,1716732660115,-151.0,0.00027945,7]
[327973149,1716732660125,-500.0,0.00027945,4]
[327973150,1716732660135,-500.0,0.00027945,4]
[327973151,1716732660145,-179.19,0.00027945,4]
[327973152,1716732660157,-664.28,0.00027945,4]
[327973153,1716732660167,-500.0,0.00027945,4]
[327973154,1716732660177,-193.036136,0.00027945,7]
[327973155,1716732660190,-500.0,0.00027945,4]
[327973156,1716732660200,-193.036136,0.00027945,7]
[327973157,1716732660211,-500.0,0.00027945,4]
[327973158,1716732660220,-500.0,0.00027945,4]
[327973159,1716732660231,-500.0,0.00027945,4]
[327973160,1716732660240,-1420.49,0.00027945,4]
[327973161,1716732660251,-500.0,0.00027945,4]
[327973162,1716732660262,-500.0,0.00027945,4]
[327973163,1716732660272,-500.0,0.00027945,4]
[327973164,1716732660282,-500.0,0.00027945,4]
[327973165,1716732660292,-500.0,0.00027945,4]
[327973166,1716732660303,-500.0,0.00027945,4]
[327973167,1716732660314,-911.95,0.00027945,4]
[327973168,1716732660324,-876.64,0.00027945,4]
[327973169,1716732660335,-532.91,0.00027945,4]
[327973170,1716732660345,-500.0,0.00027945,4]
[327973171,1716732660356,-845.02,0.00027945,4]
[327973172,1716732660366,-500.0,0.00027945,4]
[327973173,1716732660376,-1217.15,0.00027945,4]
[327973174,1716732660386,-500.0,0.00027945,4]
[327973175,1716732660397,-182.88012783,0.00027945,4]
[327973176,1716732660409,-151.0,0.00027945,7]
[327973177,1716732660420,-500.0,0.00027945,4]
[327973178,1716732660430,-500.0,0.00027945,4]
[327973179,1716732660440,-500.0,0.00027945,4]
[327973180,1716732660453,-500.0,0.00027945,4]
[327973181,1716732660466,-1573.33,0.00027945,4]
[327973182,1716732660477,-500.0,0.00027945,4]
[327973183,1716732660487,-151.0,0.00027945,7]
[327973184,1716732660499,-1943.35,0.00027945,4]
[327973185,1716732660510,-647.0,0.00027945,4]
[327973186,1716732660519,-500.0,0.00027945,4]
[327973187,1716732660530,-827.18,0.00027945,4]
[327973188,1716732660541,-525.9,0.00027945,4]
[327973189,1716732660551,-1647.19,0.00027945,4]
[327973190,1716732660562,-500.0,0.00027945,4]
[327973191,1716732660572,-555.4,0.00027945,4]
[327973192,1716732660582,-656.92,0.00027945,4]
[327973193,1716732660592,-1479.16,0.00027945,4]
[327973194,1716732660601,-859.25,0.00027945,4]
[327973195,1716732660611,-500.0,0.00027945,4]
[327973196,1716732660621,-151.0,0.00027945,7]
[327973197,1716732660632,-500.0,0.00027945,4]
[327973198,1716732660642,-300.13429257,0.00027945,4]
[327973199,1716732660652,-500.0,0.00027945,4]
[327973200,1716732660663,-705.7,0.00027945,4]
[327973201,1716732660673,-500.0,0.00027945,4]
[327973202,1716732660683,-524.26,0.00027945,4]
[327973203,1716732660693,-852.83,0.00027945,4]
[327973204,1716732660703,-792.18,0.00027945,4]
[327973205,1716732660713,-9047.47,0.00027945,4]
[327973206,1716732660724,-2563.75,0.00027945,4]
[327973207,1716732660734,-500.0,0.00027945,4]
[327973208,1716732660744,-500.0,0.00027945,4]
[327973209,1716732660754,-543.61,0.00027945,4]
[327973210,1716732660765,-657.54,0.00027945,4]
[327973211,1716732660775,-937.7,0.00027945,4]
[327973212,1716732660786,-1533.52,0.00027945,4]
[327973213,1716732660796,-782.0,0.00027945,4]
[327973214,1716732660807,-1870.6,0.00027945,4]
[327973215,1716732660817,-500.0,0.00027945,4]
[327973216,1716732660827,-523.58,0.00027945,4]
[327973217,1716732660837,-500.0,0.00027945,4]
[327973218,1716732660847,-611.87,0.00027945,4]
[327973219,1716732660858,-662.47,0.00027945,4]
[327973220,1716732660868,-709.98,0.00027945,4]
[327973221,1716732660878,-500.0,0.00027945,4]
[327973222,1716732660888,-270.019014,0.00027945,7]
[327973223,1716732660899,-500.0,0.00027945,4]
[327973224,1716732660910,-500.0,0.00027945,4]
[327973225,1716732660920,-739.81,0.00027945,4]
[327973226,1716732660930,-151.0,0.00027945,7]
[327973227,1716732660940,-6199.76,0.00027945,4]
[327973228,1716732660950,-151.0,0.00027945,7]
[327973229,1716732660960,-313.078879,0.00027945,4]
[327973230,1716732660970,-500.0,0.00027945,4]
[327973231,1716732660980,-724.86,0.00027945,4]
[327973232,1716732660994,-1320.63,0.00027945,4]
[327973233,1716732661007,-500.0,0.00027945,4]
[327973234,1716732661020,-500.0,0.00027945,4]
[327973235,1716732661033,-569.39307453,0.00027945,4]
[327973236,1716732661046,-500.0,0.00027945,4]
[327973237,1716732661057,-852.95,0.00027945,4]
[327973238,1716732661067,-500.0,0.00027945,4]
[327973239,1716732661080,-2564.82,0.00027945,4]
[327973240,1716732661092,-818.52,0.00027945,4]
[327973241,1716732661103,-500.0,0.00027945,4]
[327973242,1716732661115,-2538.12,0.00027945,4]
[327973243,1716732661128,-571.73,0.00027945,4]
[327973244,1716732661140,-500.0,0.00027945,4]
[327973245,1716732661153,-598.56,0.00027945,4]
[327973246,1716732661168,-500.0,0.00027945,4]
[327973247,1716732661181,-260.684396,0.00027945,7]
[327973248,1716732661194,-2937.07,0.00027945,4]
[327973249,1716732661205,-1041.17,0.00027945,4]
[327973250,1716732661217,-500.0,0.00027945,4]
[327973251,1716732661228,-500.0,0.00027945,4]
[327973252,1716732661239,-656.51,0.00027945,4]
[327973253,1716732661252,-500.0,0.00027945,4]
[327973254,1716732661265,-1310.5,0.00027945,4]
[327973255,1716732661276,-500.0,0.00027945,4]
[327973256,1716732661288,-552.73,0.00027945,4]
[327973257,1716732661298,-967.98,0.00027945,4]
[327973258,1716732661308,-500.0,0.00027945,4]
[327973259,1716732661321,-500.0,0.00027945,4]
[327973260,1716732661331,-151.0,0.00027945,7]
[327973261,1716732661344,-1148.48,0.00027945,4]
[327973262,1716732661356,-795.96,0.00027945,4]
[327973263,1716732661368,-678.18,0.00027945,4]
[327973264,1716732661381,-500.0,0.00027945,4]
[327973265,1716732661394,-576.35,0.00027945,4]
[327973266,1716732661407,-500.0,0.00027945,4]
[327973267,1716732661418,-606.32,0.00027945,4]
[327973268,1716732661428,-585.71,0.00027945,4]
[327973269,1716732661438,-1027.88,0.00027945,4]
[327973270,1716732661448,-2390.71,0.00027945,4]
[327973271,1716732661463,-500.0,0.00027945,4]
[327973272,1716732661476,-720.94,0.00027945,4]
[327973273,1716732661488,-884.01,0.00027945,4]
[327973274,1716732661499,-151.0,0.00027945,7]
[327973275,1716732661513,-371.37065,0.00027945,7]
[327973276,1716732661524,-856.1063,0.00027945,7]
[327973277,1716732661536,-571.26,0.00027945,4]
[327973278,1716732661547,-1408.04,0.00027945,4]
[327973279,1716732661559,-371.37065,0.00027945,7]
[327973280,1716732661570,-500.0,0.00027945,4]
[327973281,1716732661582,-500.0,0.00027945,4]
[327973282,1716732661594,-500.0,0.00027945,4]
[327973283,1716732661605,-856.1063,0.00027945,7]
[327973284,1716732661615,-500.0,0.00027945,4]
[327973285,1716732661626,-1268.26,0.00027945,4]
[327973286,1716732661636,-1085.42,0.00027945,4]
[327973287,1716732661648,-8694.34,0.00027945,4]
[327973288,1716732661661,-151.0,0.00027945,7]
[327973289,1716732661672,-500.0,0.00027945,4]
[327973290,1716732661682,-1268.05,0.00027945,4]
[327973291,1716732661693,-1448.06,0.00027945,4]
[327973292,1716732661704,-972.62,0.00027945,4]
[327973293,1716732661715,-500.0,0.00027945,4]
[327973294,1716732661726,-3904.28,0.00027945,4]
[327973295,1716732661738,-573.16,0.00027945,4]
[327973296,1716732661748,-914.87,0.00027945,4]
[327973297,1716732661759,-1089.59,0.00027945,4]
[327973298,1716732661770,-500.0,0.00027945,4]
[327973299,1716732661781,-500.0,0.00027945,4]
[327973300,1716732661791,-885.34,0.00027945,4]
[327973301,1716732661803,-151.0,0.00027945,7]
[327973302,1716732661813,-500.0,0.00027945,4]
[327973303,1716732661825,-591.51,0.00027945,4]
[327973304,1716732661836,-500.0,0.00027945,4]
[327973305,1716732661847,-1079.94,0.00027945,4]
[327973306,1716732661858,-879.76,0.00027945,4]
[327973307,1716732661869,-1841.81,0.00027945,4]
[327973308,1716732661880,-500.0,0.00027945,4]
[327973309,1716732661892,-500.0,0.00027945,4]
[327973310,1716732661904,-1638.97,0.00027945,4]
[327973311,1716732661915,-500.0,0.00027945,4]
[327973312,1716732661927,-625.43,0.00027945,4]
[327973313,1716732661938,-1077.58,0.00027945,4]
[327973314,1716732661949,-500.0,0.00027945,4]
[327973315,1716732661960,-710.46,0.00027945,4]
[327973316,1716732661974,-647.72,0.00027945,4]
[327973317,1716732661985,-568.85,0.00027945,4]
[327973318,1716732661996,-678.18,0.00027945,4]
[327973319,1716732662006,-869.84,0.00027945,4]
[327973320,1716732662017,-500.0,0.00027945,4]
[327973321,1716732662028,-500.0,0.00027945,4]
[327973322,1716732662039,-717.42,0.00027945,4]
[327973323,1716732662051,-576.0,0.00027945,4]
[327973324,1716732662061,-1137.45,0.00027945,4]
[327973325,1716732662071,-500.0,0.00027945,4]
[327973326,1716732662082,-151.0,0.00027945,7]
[327973327,1716732662093,-500.0,0.00027945,4]
[327973328,1716732662104,-500.0,0.00027945,4]
[327973329,1716732662115,-500.0,0.00027945,4]